lending/lending_fUSD_20250224
["ID","MTS","AMOUNT","RATE_DAILY","PERIOD"]
[354335675,1740426649708,-164.085491,0.000325,7]
[354335676,1740426649717,-151.0,0.000325,7]
[354335677,1740426649727,-152.0,0.00032588,3]
[354335678,1740426649736,-427.476,0.00032659,2]
[354335679,1740426649745,-1979.051,0.00032659,2]
[354335680,1740426649755,-228.61750503,0.00032735,2]
[354335681,1740426649764,-153.35,0.00032808,2]
[354335682,1740426649773,-757.91,0.00032876,20]
[354335683,1740426649783,-515.437453,0.00033,14]
[354335684,1740426649793,-214.0,0.0003306,2]
[354335685,1740426649805,-267.89,0.00033419,2]
[354335686,1740426649814,-150.0,0.00033557,2]
[354335687,1740426649824,-150.0,0.00033559,2]
[354335688,1740426649833,-150.0,0.00033559,2]
[354335689,1740426649843,-757.91,0.00033698,25]
[354335690,1740426649852,-839.6547651,0.00034,60]
[354335691,1740426649861,-214.0,0.0003421,2]
[354335692,1740426649870,-500.0,0.0003426,120]
[354335693,1740426649879,-757.91,0.0003452,30]
[354335694,1740426649889,-150.0,0.00034548,10]
[354335695,1740426649898,-2330.366,0.0003485,40]
[354335696,1740426649907,-164.574,0.0003485,40]
[354335697,1740426649916,-55555.15042356,0.000349,30]
[354335698,1740426649925,-205.80130636,0.000349,7]
[354335699,1740426649934,-101.09002407,0.00034901,120]
[354335714,1740426783224,-1475.0,9.9e-05,2]
[354335822,1740427835254,-206.29715046,0.0001,2]
[354335823,1740427835264,-150.0,0.00010395,2]
[354335824,1740427835274,-150.0,0.0001089,2]
[354335825,1740427835286,-500.0,0.0001089,2]
[354335826,1740427835295,-150.0,0.0001089,2]
[354335827,1740427835304,-500.0,0.000119,2]
[354335828,1740427835314,-960.57785,0.00014768,2]
[354335829,1740427835323,-3647.815,0.00014868,2]
[354335830,1740427835332,-960.57785,0.000159,2]
[354335831,1740427835341,-151.0,0.00016,2]
[354335832,1740427835350,-158.981471,0.00016,2]
[354335833,1740427835359,-150.0,0.00016438,2]
[354335834,1740427835369,-480.77,0.00016521,2]
[354335835,1740427835378,-151.0,0.0001688,2]
[354335836,1740427835387,-9999.99,0.00017123,2]
[354335837,1740427835395,-250.0,0.00017123,2]
[354335838,1740427835405,-873.55186127,0.000172,2]
[354335839,1740427835419,-350.0,0.00017808,2]
[354335840,1740427835428,-1796.067,0.00017944,2]
[354335841,1740427835437,-164.574,0.00017944,2]
[354335842,1740427835447,-10000.0,0.00018,2]
[354335843,1740427835458,-12620.45945027,0.00018,2]
[354335844,1740427835477,-11083.65247273,0.00018,2]
[354335845,1740427835485,-214.78731787,0.00018493,2]
[354335846,1740427835494,-205.80130636,0.000189,2]
[354335847,1740427835504,-1000.0,0.00019178,7]
[354335848,1740427835513,-873.55186123,0.000207,6]
[354335849,1740427835522,-150.0,0.00022,2]
[354335850,1740427835533,-15.21395441,0.00022017,2]
[354335851,1740427835556,-984.78604559,0.00022017,2]
[354335852,1740427835565,-167.4,0.0002204,2]
[354335853,1740427835574,-2318.82,0.00022126,2]
[354335854,1740427835583,-200.0,0.00023,2]
[354335855,1740427835592,-262.18,0.000231,7]
[354335856,1740427835602,-150.0,0.00023659,2]
[354335857,1740427835611,-169.8,0.00023889,2]
[354335858,1740427835620,-205.80130636,0.00024186,3]
[354335859,1740427835629,-1000.0,0.00024769,2]
[354335860,1740427835638,-250.0,0.00024957,2]
[354335861,1740427835647,-504.79,0.00025255,2]
[354335862,1740427835656,-164.982,0.00025396,2]
[354335863,1740427835665,-158.812,0.00025396,2]
[354335865,1740427835674,-873.55186123,0.000256,35]
[354335866,1740427835683,-355.51,0.00025628,30]
[354335868,1740427835691,-150.0,0.00025805,2]
[354335870,1740427835701,-157.25,0.0002594,2]
[354335872,1740427835710,-1239.4799,0.00025944,2]
[354335874,1740427835719,-220.59,0.00025977,2]
[354335876,1740427835728,-437.85,0.00025995,120]
[354335878,1740427835737,-8795.2409712,0.0002601,2]
[354335908,1740427837503,-3746.24,0.0002601,2]
[354335920,1740427837611,-284.74550463,0.0002601,2]
[354335922,1740427837623,-4400.0,0.0002601,2]
[354335931,1740427837716,-1418.12352417,0.0002601,2]
[354335932,1740427837726,-600.0,0.00026044,2]
[354335933,1740427837735,-321.409,0.0002608,2]
[354335934,1740427837745,-169.8,0.00026153,2]
[354335935,1740427837754,-2100.56,0.00026459,2]
[354335936,1740427837764,-2000.0,0.00026474,120]
[354335938,1740427837774,-489.0,0.000265,3]
[354335940,1740427837784,-188.24,0.0002651,2]
[354335941,1740427837793,-150.0,0.00026625,2]
[354335942,1740427837802,-150.0,0.00026659,2]
[354335943,1740427837811,-1309.02,0.00026929,2]
[354335944,1740427837820,-1484.562548,0.00027,2]
[354335946,1740427837830,-1000.0,0.0002707,2]
[354335947,1740427837839,-166.67,0.00027216,2]
[354335948,1740427837849,-150.0,0.00027261,2]
[354335949,1740427837859,-5550.0,0.000273,5]
[354335950,1740427837868,-1000.0,0.00027521,2]
[354335951,1740427837877,-600.0,0.00027555,2]
[354335952,1740427837886,-456.1635,0.000277,2]
[354335953,1740427837895,-275.38,0.00027889,2]
[354335954,1740427837905,-150.0,0.00027995,2]
[354335955,1740427837916,-355.51,0.00028212,30]
[354335956,1740427837926,-150.0,0.00028396,2]
[354335957,1740427837936,-169.8,0.00028417,2]
[354335958,1740427837946,-200.0,0.00028524,2]
[354335959,1740427837956,-150.0,0.00028716,2]
[354335960,1740427837966,-218.48,0.000291,14]
[354335961,1740427837975,-437.85,0.00029245,120]
[354335962,1740427837984,-205.80130636,0.00029471,5]
[354335963,1740427837994,-150.0,0.00029659,2]
[354335964,1740427838003,-2539.04502408,0.00029922,2]
[354335965,1740427838030,-2825.89686152,0.00029922,2]
[354335967,1740427839547,-250.0,0.00014,2]
[354335968,1740427839556,-159.761967,0.00027474,5]
[354335969,1740427839566,-9070.67752483,0.00029922,2]
[354335970,1740427839699,-295.8905,0.00029922,2]
[354335971,1740427839711,-351.35283873,0.00029922,2]
[354335972,1740427839762,-1901.59343036,0.00029922,2]
[354336022,1740427842640,-70060.40412024,0.00029922,2]
[354336023,1740427842650,-150.0,0.00030171,2]
[354336024,1740427842659,-188.24,0.00030221,2]
[354336025,1740427842668,-1000.0,0.00030273,2]
[354336026,1740427842677,-165.0,0.0003038,120]
[354336027,1740427842686,-873.55186123,0.000305,64]
[354336028,1740427842695,-169.8,0.00030681,2]
[354336029,1740427842704,-355.51,0.00030796,30]
[354336030,1740427842713,-1148.05126673,0.0003126,2]
[354336031,1740427842722,-150.0,0.0003138,7]
[354336032,1740427842731,-152.0,0.00031487,3]
[354336033,1740427842740,-150.0,0.00031627,2]
[354336034,1740427842749,-437.85,0.00032494,120]
[354336035,1740427842759,-150.0,0.000325,30]
[354336036,1740427842769,-150.0,0.000325,30]
[354336037,1740427842778,-150.0,0.000325,30]
[354336038,1740427842789,-1875.9230942,0.000325,30]
[354336039,1740427842799,-677.74632279,0.000325,30]
[354336041,1740427842809,-15886.37988488,0.000325,30]
[354336043,1740427842818,-663.17,0.00032876,20]
[354336044,1740427842828,-169.8,0.00032945,2]
[354336045,1740427842838,-515.437453,0.00033,14]
[354336046,1740427842847,-1000.0,0.00033026,2]
[354336047,1740427842856,-150.0,0.00033082,2]
[354336048,1740427842865,-355.51,0.0003338,120]
[354336049,1740427842875,-323.5860292,0.00033525,4]
[354336050,1740427842885,-663.17,0.00033698,25]
[354336051,1740427842894,-745.13,0.0003399,3]
[354336052,1740427842903,-12977.93255027,0.00034,2]
[354336053,1740427842913,-639.20549,0.0003421,2]
[354336054,1740427842922,-152.0,0.00034239,4]
[354336055,1740427842931,-5032.68,0.00034257,2]
[354336056,1740427842941,-163.27416256,0.0003442,2]
[354336057,1740427842950,-663.17,0.0003452,30]
[354336058,1740427842959,-163.27416254,0.00034529,2]
[354336059,1740427842968,-150.0,0.00034537,2]
[354336060,1740427842977,-153.0,0.00034559,2]
[354336061,1740427842986,-153.0,0.00034561,2]
[354336062,1740427842996,-153.0,0.00034578,2]
[354336063,1740427843006,-163.27416254,0.00034638,2]
[354336064,1740427843015,-400.0,0.000347,12]
[354336065,1740427843027,-7500.0,0.00034717,3]
[354336066,1740427843038,-163.27416254,0.00034747,2]
[354336067,1740427843048,-984.42280916,0.00034756,7]
[354336068,1740427843058,-178.54195853,0.00034756,2]
[354336069,1740427843068,-9113.87612359,0.00034756,2]
[354336070,1740427843077,-164.22159521,0.00034756,2]
[354336071,1740427843086,-205.80130636,0.00034757,7]
[354336072,1740427843095,-254.21203516,0.00034793,7]
[354336073,1740427843103,-800.0,0.000348,12]
[354336074,1740427843112,-123280.62684982,0.00034817,2]
[354336075,1740427843128,-550.0,0.00034817,2]
[354336081,1740427845471,-423385.85256092,0.00034817,2]
[354336082,1740427845526,-3503.32718698,0.00034817,2]
[354336083,1740427845581,-732.0,0.00034817,2]
[354336084,1740427845594,-1972.25728775,0.00034817,2]
[354336085,1740427845606,-918.0,0.00034817,2]
[354336086,1740427845617,-518.11771717,0.00034817,2]
[354336087,1740427845629,-3057.94033616,0.00034817,2]
[354336088,1740427845688,-35511.59684801,0.00034817,2]
[354336153,1740428054620,152.19,8.767e-05,2]
[354336173,1740429031966,-2077.24795638,9.899e-05,2]
[354336185,1740429037798,-2242.94655868,9.899e-05,2]
[354336186,1740429037808,-900.0,9.9e-05,3]
[354336187,1740429037818,-500.0,9.973e-05,2]
[354336188,1740429037834,-500.0,9.973e-05,2]
[354336189,1740429037843,-500.0,9.973e-05,2]
[354336190,1740429037852,-150.0,9.999e-05,2]
[354336191,1740429037860,-500.0,9.999e-05,2]
[354336192,1740429037870,-500.0,9.999e-05,2]
[354336193,1740429037879,-608.41821437,9.999e-05,2]
[354336194,1740429037887,-9135.47832031,0.0001,2]
[354336195,1740429037914,-2336.58518378,0.0001,2]
[354336196,1740429037931,-18144.0,0.0001,2]
[354336197,1740429037942,-1799.94722555,0.0001,2]
[354336198,1740429037963,-1400.0,0.0001,2]
[354336199,1740429037974,-56376.68444493,0.0001,2]
[354336266,1740429039683,-543.22345569,0.0001,2]
[354336267,1740429039738,-1438933.85827658,0.0001,2]
[354336268,1740429039747,-1900.0,0.0001,3]
[354336269,1740429039756,-62235.19561329,0.0001,2]
[354336270,1740429039765,-1853.3968401,0.0001,2]
[354336271,1740429039774,-214.85101184,0.0001,2]
[354336272,1740429039783,-2624.35377333,0.0001,2]
[354336273,1740429039792,-531.83563486,0.0001,2]
[354336274,1740429039801,-250.22015077,0.0001,2]
[354336275,1740429039810,-1000.0,0.00010521,2]
[354336276,1740429039820,-257.52363855,0.000107,2]
[354336277,1740429039832,-771.37933579,0.000108,2]
[354336278,1740429039841,-163.14882318,0.000109,2]
[354336279,1740429039850,-255.0,0.00010999,2]
[354336280,1740429039859,-127199.94435065,0.00011,2]
[354336281,1740429039869,-17723.95857824,0.00011099,2]
[354336282,1740429039877,-213.71225366,0.000117,2]
[354336283,1740429039886,-213.71225354,0.000117,2]
[354336284,1740429039895,-433.0,0.00012099,2]
[354336285,1740429039905,-336.6,0.00012733,3]
[354336286,1740429039914,-314.81,0.00012811,2]
[354336287,1740429039923,-2800.0,0.000129,4]
[354336288,1740429039932,-213.71225354,0.00012934,2]
[354336289,1740429039941,-250.0,0.0001308,2]
[354336290,1740429039950,-254.21203516,0.0001327,2]
[354336291,1740429039959,-187.0,0.00013309,2]
[354336292,1740429039968,-28195.02772698,0.0001337,2]
[354336293,1740429039977,-17723.95857817,0.00013444,2]
[354336294,1740429039986,-150.99,0.00013699,2]
[354336295,1740429039995,-179.61,0.00013699,2]
[354336296,1740429040004,-213.71225354,0.00014452,2]
[354336297,1740429040013,-390.27900192,0.000148,2]
[354336298,1740429040022,-82560.33723561,0.000149,5]
[354336299,1740429040031,-10196.15588542,0.00015,2]
[354336300,1740429040040,-4920.30139034,0.00015,2]
[354336301,1740429040049,-761.15235608,0.00015,2]
[354336302,1740429040059,-8068.23449381,0.00015,2]
[354336303,1740429040069,-816.08552279,0.00015,2]
[354336304,1740429040078,-300.0,0.00015,2]
[354336305,1740429040087,-1235.0,0.00015,3]
[354336306,1740429040096,-300.0,0.00015068,2]
[354336307,1740429040105,-1517.64,0.000153,2]
[354336308,1740429040114,-15996.14509271,0.000154,2]
[354336309,1740429040123,-486.45402486,0.000154,2]
[354336311,1740429040132,-152.19,0.0001589,2]
[354336313,1740429040141,-213.71225354,0.00015969,2]
[354336315,1740429040150,-6307.58,0.00016116,2]
[354336317,1740429040160,-17723.95857817,0.00016189,2]
[354336319,1740429040169,-300.0,0.00016438,2]
[354336321,1740429040178,-176.52,0.00016712,2]
[354336322,1740429040187,-174.71037227,0.000172,2]
[354336323,1740429040196,-174.71037224,0.000172,2]
[354336324,1740429040205,-213.71225354,0.00017486,2]
[354336325,1740429040214,-9113.87612359,0.00017519,2]
[354336326,1740429040223,-9113.87612358,0.00017519,2]
[354336327,1740429040232,-9113.87612358,0.00017519,2]
[354336328,1740429040241,-3926.89547881,0.00017688,3]
[354336329,1740429040251,-1000.0,0.00017877,2]
[354336330,1740429040260,-10000.0,0.00018,2]
[354336331,1740429040269,-20053.36245315,0.00018,14]
[354336332,1740429040279,-1138.54612133,0.00018,2]
[354336333,1740429040289,-109532.6463825,0.000181,2]
[354336334,1740429040299,-1000.0,0.00018329,2]
[354336335,1740429040309,-17723.95857817,0.00018933,2]
[354336336,1740429040318,-213.71225354,0.00019003,2]
[354336337,1740429040328,-1000.0,0.00019178,7]
[354336338,1740429040337,-150.0,0.00019315,2]
[354336339,1740429040346,-500.0,0.00019315,2]
[354336340,1740429040355,-500.0,0.00019342,2]
[354336341,1740429040364,-441.98,0.00019397,30]
[354336342,1740429040374,-500.0,0.00019442,2]
[354336343,1740429040383,-1000.0,0.00019452,7]
[354336344,1740429040392,-500.0,0.00019542,2]
[354336345,1740429040401,-500.0,0.00019642,2]
[354336346,1740429040410,-150.37,0.00019678,2]
[354336347,1740429040419,-500.0,0.00019726,2]
[354336348,1740429040428,-1000.0,0.00019726,7]
[354336349,1740429040437,-500.0,0.00019742,2]
[354336350,1740429040447,-500.0,0.00019842,2]
[354336351,1740429040456,-10719.35362809,0.00019899,2]
[354336352,1740429040466,-500.0,0.00019942,2]
[354336353,1740429040475,-1000.0,0.0002,7]
[354336354,1740429040484,-557.82224678,0.0002,10]
[354336355,1740429040494,-4500.0,0.0002,21]
[354336356,1740429040503,-33210.23041871,0.0002,10]
[354336357,1740429040512,-500.0,0.00020042,2]
[354336358,1740429040521,-500.0,0.00020142,2]
[354336359,1740429040529,-500.0,0.00020242,2]
[354336360,1740429040538,-1000.0,0.00020273,7]
[354336361,1740429040547,-500.0,0.00020342,2]
[354336362,1740429040560,-500.0,0.00020442,2]
[354336363,1740429040568,-150.99999941,0.000205,2]
[354336364,1740429040578,-213.71225354,0.00020521,2]
[354336365,1740429040586,-500.0,0.00020542,2]
[354336366,1740429040595,-1000.0,0.00020547,7]
[354336367,1740429040604,-500.0,0.00020642,2]
[354336368,1740429040613,-500.68558346,0.00020728,120]
[354336369,1740429040622,-29999.999999,0.00020728,2]
[354336370,1740429040631,-500.0,0.00020742,2]
[354336371,1740429040639,-1000.0,0.00020821,7]
[354336372,1740429040648,-500.0,0.00020842,2]
[354336373,1740429040657,-500.0,0.00020942,2]
[354336374,1740429040666,-23034.93,0.00020951,2]
[354336375,1740429040675,-19999.99,0.00020951,2]
[354336376,1740429040684,-16960.05,0.00020951,2]
[354336377,1740429040693,-500.0,0.00021042,2]
[354336378,1740429040702,-1000.0,0.00021095,7]
[354336379,1740429040711,-150.0,0.00021096,2]
[354336380,1740429040720,-500.0,0.00021096,2]
[354336381,1740429040728,-500.0,0.00021142,2]
[354336382,1740429040737,-172.02,0.0002121,2]
[354336383,1740429040746,-500.0,0.00021242,2]
[354336384,1740429040755,-500.0,0.00021342,2]
[354336385,1740429040764,-1000.0,0.00021369,7]
[354336386,1740429040772,-11435.22313779,0.00021554,2]
[354336387,1740429040781,-1000.0,0.00021643,7]
[354336388,1740429040790,-1564.9674,0.00021657,2]
[354336389,1740429040799,-31069.2857,0.00021657,2]
[354336390,1740429040810,-17723.95857817,0.00021678,2]
[354336391,1740429040818,-2386.361,0.00021756,2]
[354336392,1740429040827,-166.998,0.00021756,2]
[354336393,1740429040839,-150.0,0.00021889,2]
[354336394,1740429040848,-914.23,0.00021897,2]
[354336395,1740429040857,-771.3547725,0.00021917,7]
[354336396,1740429040866,-198.39,0.0002194,2]
[354336397,1740429040876,-23900.0,0.0002194,2]
[354336398,1740429040886,-600.0,0.00021948,2]
[354336399,1740429040895,-441.98,0.00021981,30]
[354336400,1740429040903,-150.0,0.00022,2]
[354336401,1740429040914,-1386.61,0.00022033,2]
[354336402,1740429040923,-213.71225354,0.00022038,3]
[354336403,1740429040932,-172.02,0.00022085,2]
[354336404,1740429040941,-505.22,0.0002219,2]
[354336405,1740429040951,-943.42,0.00022215,2]
[354336406,1740429040960,-2751.0,0.00022231,2]
[354336407,1740429040969,-150.0,0.00022474,2]
[354336408,1740429040978,-174.71037224,0.000226,17]
[354336409,1740429040987,-163.14882316,0.0002265,2]
[354336410,1740429040996,-159.84212015,0.000227,2]
[354336411,1740429041005,-406.69797652,0.0002296,2]
[354336412,1740429041014,-172.02,0.0002296,2]
[354336413,1740429041023,-152.19,0.00023014,2]
[354336414,1740429041033,-150.0,0.00023058,2]
[354336415,1740429041042,-263.19,0.000232,7]
[354336416,1740429041053,-213.71225354,0.00023555,3]
[354336417,1740429041062,-150.0,0.00023643,2]
[354336418,1740429041071,-172.02,0.00023835,2]
[354336419,1740429041080,-157.25,0.00023836,2]
[354336420,1740429041089,-150.0,0.00024228,2]
[354336421,1740429041098,-17723.95857817,0.00024422,2]
[354336422,1740429041107,-441.98,0.00024565,30]
[354336423,1740429041116,-214.7,0.0002468,120]
[354336424,1740429041125,-150.5,0.0002469,120]
[354336425,1740429041135,-150.5,0.000247,120]
[354336426,1740429041145,-172.02,0.0002471,2]
[354336427,1740429041155,-1386.61,0.00024787,120]
[354336428,1740429041165,-150.0,0.00024812,2]
[354336429,1740429041174,-38868.80968932,0.00025,2]
[354336430,1740429041184,-213.71225354,0.00025072,4]
[354336431,1740429041194,-150.0,0.00025397,2]
[354336432,1740429041203,-784.0,0.00025572,2]
[354336433,1740429041213,-1267.0,0.00025572,2]
[354336434,1740429041223,-540.0,0.00025572,2]
[354336435,1740429041232,-908.0,0.00025572,2]
[354336436,1740429041241,-1424.0,0.00025572,2]
[354336437,1740429041250,-4033.0,0.00025572,2]
[354336438,1740429041259,-1111.0,0.00025572,2]
[354336439,1740429041268,-1274.0,0.00025572,2]
[354336440,1740429041278,-3921.0,0.00025572,2]
[354336441,1740429041287,-2028.0,0.00025572,2]
[354336442,1740429041296,-151.0,0.00025572,2]
[354336443,1740429041306,-150.0,0.00025572,2]
[354336444,1740429041315,-1010.0,0.00025572,2]
[354336445,1740429041324,-2500.0,0.00025613,2]
[354336446,1740429041333,-345.27,0.00025713,2]
[354336447,1740429041342,-1194.3797,0.00025888,30]
[354336448,1740429041351,-150.0,0.00025982,2]
[354336449,1740429041360,-2000.0,0.00026524,120]
[354336450,1740429041369,-150.0,0.00026567,2]
[354336451,1740429041380,-213.71225354,0.0002659,4]
[354336452,1740429041389,-5550.0,0.000266,3]
[354336453,1740429041399,-958.83,0.00026737,2]
[354336454,1740429041408,-1000.0,0.00027063,2]
[354336455,1740429041417,-441.98,0.00027149,30]
[354336456,1740429041427,-150.0,0.00027151,2]
[354336457,1740429041436,-17723.95857817,0.00027167,2]
[354336458,1740429041445,-5550.0,0.000272,5]
[354336459,1740429041455,-198.39,0.00027425,2]
[354336460,1740429041464,-1386.61,0.00027541,120]
[354336461,1740429041473,-500.0,0.000276,2]
[354336462,1740429041482,-200.0,0.00027683,2]
[354336463,1740429041492,-6811.43022221,0.00027699,2]
[354336464,1740429041501,-150.0,0.00027736,2]
[354336465,1740429041510,-242.8,0.00027823,2]
[354336466,1740429041519,-345.27,0.00027977,2]
[354336467,1740429041529,-200.0,0.00027997,2]
[354336468,1740429041538,-1302.14,0.00027997,2]
[354336469,1740429041547,-150.0,0.00027997,2]
[354336470,1740429041557,-5192.62742677,0.00028,60]
[354336471,1740429041566,-213.71225354,0.00028107,5]
[354336472,1740429041575,-250.0,0.00028225,2]
[354336473,1740429041584,-220.0,0.00028231,2]
[354336474,1740429041593,-2637.73,0.00028281,2]
[354336475,1740429041602,-150.0,0.00028321,2]
[354336476,1740429041611,-123280.6268,0.00028472,2]
[354336477,1740429041620,-784.0,0.00028572,2]
[354336478,1740429041629,-1264.0,0.00028572,2]
[354336479,1740429041639,-907.0,0.00028572,2]
[354336480,1740429041647,-4033.0,0.00028572,2]
[354336481,1740429041656,-681.685,0.00028572,2]
[354336482,1740429041665,-3921.0,0.00028572,2]
[354336483,1740429041675,-1878.01,0.00028572,2]
[354336484,1740429041684,-150.0,0.00028572,2]
[354336485,1740429041693,-1010.0,0.00028572,2]
[354336486,1740429041702,-242.0,0.00028779,2]
[354336487,1740429041711,-150.0,0.00028905,2]
[354336488,1740429041720,-219.32,0.000293,14]
[354336489,1740429041729,-200.0,0.0002946,2]
[354336490,1740429041738,-150.0,0.0002949,2]
[354336491,1740429041746,-213.71225354,0.00029624,5]
[354336492,1740429041755,-441.98,0.00029733,30]
[354336493,1740429041764,-17723.95857817,0.00029911,2]
[354336494,1740429041774,-150.0,0.00030075,2]
[354336495,1740429041783,-152.19,0.00030137,2]
[354336496,1740429041791,-345.27,0.00030241,2]
[354336497,1740429041800,-1386.61,0.00030296,120]
[354336498,1740429041809,-156.530922,0.00030393,2]
[354336499,1740429041819,-150.0,0.0003066,2]
[354336500,1740429041831,-156.530922,0.000309,2]
[354336501,1740429041841,-846.0,0.00031,10]
[354336502,1740429041850,-37620.93516393,0.00031,4]
[354336503,1740429041859,-3713.70363141,0.00031,2]
[354336504,1740429041870,-213.71225354,0.00031141,5]
[354336505,1740429041879,-500.0,0.00031175,5]
[354336506,1740429041887,-150.0,0.00031244,2]
[354336507,1740429041898,-156.530922,0.00031406,2]
[354336508,1740429041907,-450.352,0.00031572,2]
[354336509,1740429041916,-3908.0,0.00031572,2]
[354336510,1740429041925,-150.0,0.00031572,2]
[354336511,1740429041934,-1006.0,0.00031572,2]
[354336512,1740429041943,-1000.0,0.00031618,2]
[354336513,1740429041952,-799.45,0.00031628,2]
[354336514,1740429041961,-1000.0,0.00031723,5]
[354336515,1740429041970,-150.0,0.00031829,2]
[354336516,1740429041979,-156.530922,0.00031913,2]
[354336517,1740429041989,-150.0,0.00031932,7]
[354336518,1740429041998,-150.0,0.00031932,7]
[354336519,1740429042007,-150.0,0.00031932,7]
[354336520,1740429042016,-150.0,0.00031932,7]
[354336521,1740429042026,-1000.0,0.00032,10]
[354336522,1740429042035,-1000.0,0.00032,10]
[354336523,1740429042044,-1000.0,0.00032,10]
[354336524,1740429042053,-1000.0,0.00032,10]
[354336525,1740429042063,-1000.0,0.00032,10]
[354336526,1740429042072,-950.0,0.00032,10]
[354336527,1740429042082,-1000.0,0.00032,10]
[354336528,1740429042091,-1000.0,0.00032,10]
[354336529,1740429042100,-1000.0,0.00032,10]
[354336530,1740429042110,-150.0,0.00032068,7]
[354336531,1740429042119,-150.0,0.00032129,7]
[354336532,1740429042271,-150.0,0.00032204,7]
[354336533,1740429042281,-441.98,0.00032317,30]
[354336534,1740429042290,-24834.72494789,0.00032321,2]
[354336535,1740429042300,-150.0,0.00032326,7]
[354336536,1740429042310,-150.0,0.00032341,7]
[354336537,1740429042318,-150.0,0.00032414,2]
[354336538,1740429042327,-150.0,0.00032438,7]
[354336539,1740429042338,-150.0,0.00032477,7]
[354336540,1740429042348,-150.0,0.000325,30]
[354336541,1740429042357,-150.0,0.000325,30]
[354336542,1740429042366,-150.0,0.000325,30]
[354336543,1740429042375,-1251.47104541,0.000325,30]
[354336544,1740429042384,-513.93031045,0.000325,30]
[354336545,1740429042394,-11838.38466144,0.000325,30]
[354336546,1740429042403,-345.27,0.00032505,2]
[354336547,1740429042412,-150.0,0.00032523,7]
[354336548,1740429042422,-150.0,0.00032592,7]
[354336549,1740429042431,-150.0,0.00032614,7]
[354336550,1740429042440,-17723.95857817,0.00032656,2]
[354336551,1740429042449,-213.71225354,0.00032659,6]
[354336552,1740429042458,-150.0,0.0003272,7]
[354336553,1740429042468,-1500.0,0.00032725,5]
[354336554,1740429042478,-150.0,0.0003275,7]
[354336555,1740429042487,-580.28,0.00032876,20]
[354336557,1740429042496,-150.0,0.00032887,7]
[354336559,1740429042506,-3800.0,0.000329,12]
[354336560,1740429042515,-198.39,0.0003291,2]
[354336561,1740429042523,-150.0,0.00032917,7]
[354336562,1740429042532,-150.0,0.00032945,7]
[354336563,1740429042542,-150.0,0.00032998,2]
[354336564,1740429042551,-150.0,0.00033023,7]
[354336565,1740429042560,-1386.61,0.0003305,120]
[354336566,1740429042570,-24834.72494789,0.00033091,2]
[354336567,1740429042580,-150.0,0.00033114,7]
[354336568,1740429042589,-150.0,0.0003316,7]
[354336569,1740429042598,-150.0,0.00033296,7]
[354336571,1740429042607,-150.0,0.00033311,7]
[354336573,1740429042616,-150.0,0.00033433,7]
[354336575,1740429042625,-150.0,0.00033452,7]
[354336577,1740429042634,-150.0,0.00033508,7]
[354336579,1740429042643,-150.0,0.00033569,7]
[354336581,1740429042652,-2199.0,0.00033698,5]
[354336582,1740429042661,-580.28,0.00033698,25]
[354336583,1740429042670,-150.0,0.00033705,7]
[354336584,1740429042679,-150.0,0.00033705,7]
[354336585,1740429042688,-150.90862462,0.0003381,5]